[Event "FIDE WSCC 65 2022"]
[Site "Assisi"]
[Date "2022.11.20"]
[Round "6.11"]
[White "Koehler, Gerhard"]
[Black "Binham, Timothy F."]
[Result "1/2-1/2"]
[ECO "A22"]
[WhiteElo "2198"]
[BlackElo "2284"]
[Annotator "TA"]
[PlyCount "104"]
[EventDate "2022.11.14"]
[EventType "swiss"]
[EventCountry "ITA"]
[SourceTitle "playchess.com"]
[Source "ChessBase"]
[SourceQuality "1"]
[TimeControl "40/5400+30:1800+30"]

{[%evp 11,104,0,-1,-6,-12,0,-5,-7,-16,-58,-65,-61,-50,-56,-44,-49,-45,-47,-41,-39,-42,-108,-49,-102,-77,-262,-262,-263,-257,-388,-379,-495,-213,-208,-154,-187,-176,-184,-167,-158,-158,-165,-162,-214,-176,-166,-140,-207,-189,-341,-276,-350,-177,-175,-171,-177,-178,-167,-171,-170,-159,-245,-245,-284,-252,-252,-242,-245,-245,-246,-244,-245,-243,-238,-227,-243,-235,-229,-197,-235,-235,-224,-7,-7,0,0,0,0,0,0,0,0,0,0,0]} 1. c4 {[%emt 0:00:02]} e5 {[%emt 0:00:39]} 2. Nc3 {[%emt 0:00:32]} Nf6 {[%emt 0:00:18]} 3. g3 {[%emt 0:00:10]} Bb4 {[%emt 0:00:32]} 4. Bg2 {[%emt 0:00:11]} O-O {[%emt 0:00:10]} 5. Nf3 {[%emt 0:00:32]} Re8 {[%emt 0:00:56]} 6. O-O {[%emt 1:32:03]} c6 {[%emt 0:07:50]} 7. Qc2 {[%emt 0:00:00] A22: English Opening: 1...e5 2 Nc3 Nf6.} d5 {[%emt 0:03:00]} 8. cxd5 {[%emt 0:00:00]} cxd5 {[%emt 0:00:39]} 9. d4 {[%emt 0:00:00]} e4 {[%emt 0:01:33]} 10. Nd2 {[%emt 0:00:00]} Nc6 {[%emt 0:03:44] [#]} 11. Nb3 $146 {[%emt 0:00:00]} ({Predecessor:} 11. e3 Be6 12. a3 Bd6 13. b4 Rc8 14. Qb3 Qd7 15. Na4 b6 16. Bb2 Bh3 17. Rac1 {0-1 (52) Samaganova,A (1917)-Voit,D (2347) Chess.com INT 2021}) 11... h6 {[%emt 0:04:25] Inhibits Bg5.} 12. Bf4 {[%emt 0:00:00]} Bf5 {[%emt 0:03:45]} (12... a5 $5 {[%cal Ra5a4]} 13. a4 Bd7 $15) 13. Rac1 {[%emt 0:00:00]} Rc8 {[%emt 0:01:55]} 14. Qd2 {[%emt 0:00:00]} b6 {[%emt 0:05:35]} 15. f3 {[%emt 0:00:00]} Qd7 {[%emt 0:05:15]} 16. Rfe1 {[%emt 0:00:00]} (16. g4 $15 Bg6 17. a3) 16... Re6 {[%emt 0:24:47]} (16... Nh5 $17 17. Be3 Bh3) 17. Be3 {[%emt 0:00:00]} (17. a3 $1 $15 Bxc3 18. Qxc3) 17... Rce8 {[%emt 0:00:35]} (17... Ne8 {keeps more tension.} 18. Bf4 g5 19. g4 Bxg4 20. fxg4 gxf4 21. Qxf4 Rf6) 18. f4 $2 {[%emt 0:00:00]} (18. a3 $17 Qe7 19. f4 (19. axb4 exf3 20. exf3 Rxe3 $15)) 18... h5 $19 {[%emt 0:01:15][%cal Oh5h4]} 19. h3 {[%emt 0:00:00]} Ne7 {[%emt 0:04:57][%cal Oh5h4] White must now prevent ...h4!} 20. a3 {[%emt 0:00:00]} (20. Bf2 $142) 20... Bd6 {[%emt 0:00:03][%cal Oh5h4]} 21. Nd1 {[%emt 0:00:00]} Qb5 {[%emt 0:04:16]} (21... h4 $142 22. g4 Nxg4 $1 23. hxg4 Bxg4) 22. Rc3 {[%emt 0:00:00]} Bb8 {[%emt 0:01:00]} 23. Nf2 {[%emt 0:00:00]} Rc6 {[%emt 0:00:37]} 24. Rec1 {[%emt 0:00:00]} Rec8 {[%emt 0:01:21]} 25. Rxc6 {[%emt 0:00:00]} Rxc6 {[%emt 0:00:02]} 26. Rxc6 {[%emt 0:00:00]} Qxc6 {[%emt 0:01:35]} ({And not} 26... Nxc6 27. Qc3 $17) 27. Kf1 {[%emt 0:00:00]} (27. Qc1 {keeps fighting.}) 27... Bc8 {[%emt 0:01:53] ...Nf5 is the strong threat.} 28. Nd1 {[%emt 0:00:00]} Ba6 {[%emt 0:00:37]} 29. Nc3 {[%emt 0:00:00]} (29. Na1 $17 {was called for.}) 29... Nf5 {[%emt 0:01:40]} 30. Kf2 $2 {[%emt 0:00:00]} (30. Bf2 {is a better defense.}) 30... Qd6 {[%emt 0:01:38][%cal Og7g5]} ({Not} 30... Qc4 $2 31. Na1 $19) 31. Na1 {[%emt 0:00:00]} h4 {[%emt 0:01:09]} (31... g5 $142 {Hoping for ...h4.} 32. Ke1 h4) 32. g4 {[%emt 0:00:00]} Nxe3 {[%emt 0:00:15]} 33. Qxe3 {[%emt 0:00:00]} Qxf4+ {[%emt 0:00:26]} 34. Qxf4 {[%emt 0:00:00]} Bxf4 {[%emt 0:00:02]} 35. Nc2 {[%emt 0:00:00]} Bc4 {[%emt 0:04:31]} 36. Ne3 {[%emt 0:00:00] [#]} (36. e3 $17 Bg3+ 37. Kg1) 36... Bb3 $1 {[%emt 0:00:40]} 37. Nb1 {[%emt 0:00:00]} Kf8 {[%emt 0:01:30]} 38. Nd2 {[%emt 0:00:00]} Ba4 {[%emt 0:00:03]} 39. b3 {[%emt 0:00:00]} Bc6 {[%emt 0:01:02]} 40. Nb1 {[%emt 0:00:00]} g6 {[%emt 0:00:52]} 41. Nc2 {[%emt 0:30:19]} Ke7 {[%emt 0:35:15]} 42. Nc3 {[%emt 0:01:48]} Bb7 {[%emt 0:03:41]} 43. Nb5 {[%emt 0:00:54]} a6 {[%emt 0:01:09]} 44. Nc3 {[%emt 0:00:10]} Kd7 {[%emt 0:00:56]} 45. e3 {[%emt 0:00:37]} Bg3+ {[%emt 0:00:30]} 46. Kg1 {[%emt 0:00:14]} Kd6 $2 {[%emt 0:00:00]} ({Black should play} 46... Nh7 $19 {Strongly threatening ...Ng5.} 47. Nb4 Ke6) 47. Ne2 $1 $11 {[%emt 0:00:00] The position is equal.} g5 {[%emt 0:00:00]} 48. Bf1 {[%emt 0:00:00]} a5 {[%emt 0:00:00]} 49. Nxg3 {[%emt 0:00:00]} hxg3 {[%emt 0:00:00]} 50. Kg2 {[%emt 0:00:00]} Bc6 {[%emt 0:00:00]} 51. Kxg3 {[%emt 0:00:00]} Bd7 {[%emt 0:00:00]} 52. Be2 {[%emt 0:00:00]} Ne8 {[%emt 0:00:00] And White is the lucky defender.   Weighted Error Value: White=0.29 (precise) /Black=0.32} 1/2-1/2

[Event "FIDE WSCC 65 2022"]
[Site "Assisi"]
[Date "2022.11.20"]
[Round "6.12"]
[White "Tocco, Paolo"]
[Black "Knaak, Rainer"]
[Result "0-1"]
[ECO "D00"]
[WhiteElo "2033"]
[BlackElo "2457"]
[Annotator "TA"]
[PlyCount "56"]
[EventDate "2022.11.14"]
[EventType "swiss"]
[EventCountry "ITA"]
[SourceTitle "playchess.com"]
[Source "ChessBase"]
[SourceQuality "1"]
[TimeControl "40/5400+30:1800+30"]

{[%evp 9,56,-63,-59,-49,-52,-74,-60,-65,-51,-40,-18,-51,-29,-86,-88,-80,-81,-82,-79,-77,-60,-72,-71,-99,-132,-132,-126,-166,-164,-419,-218,-213,-179,-434,-439,-452,-449,-448,-439,-515,-515,-1015,-880,-849,-691,-671,-677,-29983,-508]} 1. d4 {[%emt 0:00:05]} d5 {[%emt 0:00:20]} 2. e4 {[%emt 0:00:08]} dxe4 {[%emt 0:00:26]} 3. Nc3 {[%emt 0:00:05]} Nf6 {[%emt 0:00:28]} 4. Bg5 {[%emt 0:00:14]} Bf5 {[%emt 0:01:17]} 5. f3 {[%emt 0:00:44]} Nbd7 {[%emt 0:10:56]} 6. g4 {[%emt 0:07:05] D00: 1 d4 d5: Unusual lines.} Bg6 {[%emt 0:00:33]} 7. Qe2 {[%emt 0:00:08][%cal Rf3e4]} exf3 {[%emt 0:05:37]} 8. Nxf3 {[%emt 0:00:06] [#] Black is slightly better.} c6 $146 {[%emt 0:00:40]} ({Predecessor:} 8... h6 9. Bxf6 Nxf6 10. O-O-O Nd5 11. Qb5+ c6 12. Qxb7 Qc8 13. Ba6 Nb6 14. Qxc8+ Nxc8 {1-0 (63) Evans,C (1867)-Head,L (1754) England 2013}) 9. O-O-O {[%emt 0:00:19]} Qa5 {[%emt 0:13:13]} 10. h4 {[%emt 0:07:26]} h5 $1 {[%emt 0:15:15] Strongly threatening ...Nd5.} 11. Bxf6 {[%emt 0:06:56]} (11. Ne5 $1 $11 {keeps the balance.} Nxe5 12. dxe5 Nxg4 13. e6) 11... gxf6 $17 {[%emt 0:00:21]} ({But not} 11... hxg4 $6 12. Ne5 gxf6 13. Nxg6 fxg6 14. Qxg4 $11) 12. g5 {[%emt 0:00:13]} O-O-O {[%emt 0:04:23]} 13. d5 {[%emt 0:02:35]} fxg5 {[%emt 0:07:32] aiming for ...Bg7.} 14. dxc6 {[%emt 0:18:26]} bxc6 {[%emt 0:00:06]} 15. Nd4 {[%emt 0:21:29]} Ne5 {[%emt 0:06:35]} 16. Nb3 {[%emt 0:16:14]} Rxd1+ {[%emt 0:00:11]} 17. Kxd1 {[%emt 0:00:24]} Qc7 {[%emt 0:01:08] ...g4 is the strong threat.} 18. Qa6+ {[%emt 0:01:35]} Kb8 {[%emt 0:03:42]} 19. Bg2 $2 {[%emt 0:06:16] [#]} (19. hxg5 e6 20. Kc1) 19... Qb6 {[%emt 0:01:05]} (19... g4 $142 {White must now prevent ...Bh6.} 20. Kc1 Bg7) 20. Qe2 $19 {[%emt 0:01:34]} Bg7 {[%emt 0:00:11]} 21. Kc1 $2 {[%emt 0:01:01]} (21. hxg5 h4 22. Kc1) 21... g4 {[%emt 0:03:00]} 22. Rd1 {[%emt 0:02:54]} Rd8 {[%emt 0:00:18]} 23. Rxd8+ {[%emt 0:00:28]} Qxd8 {[%emt 0:00:06]} 24. Nc5 {[%emt 0:00:45]} Qd4 {[%emt 0:01:36]} 25. N3a4 {[%emt 0:03:47]} (25. Nb3 $142 Qg1+ 26. Nd1) 25... Bh6+ {[%emt 0:06:17]} 26. Kb1 {[%emt 0:00:13]} Qe3 {[%emt 0:00:25][%csl Gh6][%cal Re3c1] [#]} 27. Qd1 {[%emt 0:00:58][%cal Rd1d8] Prevents Qc1+.} Qd2 {[%emt 0:00:11][%cal Rd2d1] Prevents Qd8+.} 28. Qf1 {[%emt 0:01:18]} Bxc2+ {[%emt 0:01:18] Weighted Error Value: White=0.81/Black=0.38} (28... Qxc2+ $142 29. Ka1 Bc1 30. Be4 Bxe4 31. Nxe4 Nc4 32. Qxc4 Qxc4 33. Nec5 g3 34. Nd7+ Kc7 35. Ne5 Qxa4 36. Kb1 Bf4 37. b3 Qe4+ 38. Nd3 Qxd3+ 39. Kb2 Be5+ 40. Kc1 g2 41. b4 g1=Q#) 0-1

[Event "FIDE WSCC 65 2022"]
[Site "Assisi"]
[Date "2022.11.20"]
[Round "6.13"]
[White "Renman, Nils-Gustaf"]
[Black "Smolin, Sergey"]
[Result "1-0"]
[ECO "A59"]
[WhiteElo "2320"]
[BlackElo "2106"]
[Annotator "TA"]
[PlyCount "121"]
[EventDate "2022.11.14"]
[EventType "swiss"]
[EventCountry "ITA"]
[SourceTitle "playchess.com"]
[Source "ChessBase"]
[SourceQuality "1"]
[TimeControl "40/5400+30:1800+30"]

{[%evp 22,121,70,41,37,10,17,21,27,0,0,0,51,0,68,0,0,0,39,0,0,-2,6,0,28,24,83,79,173,210,210,173,162,78,77,77,81,77,74,77,70,41,50,20,75,23,77,77,78,77,86,83,215,205,205,208,213,192,218,204,232,220,328,328,318,289,317,277,346,346,507,514,495,414,404,417,437,458,449,433,674,684,680,673,669,666,619,650,625,597,821,793,732,747,1185,1039,2525,2368,2041,1936,1607,875]} 1. d4 {[%emt 0:00:03]} Nf6 {[%emt 0:00:10]} 2. Nf3 {[%emt 0:00:27]} g6 {[%emt 0:00:06]} 3. c4 {[%emt 0:00:05]} c5 {[%emt 0:00:09]} 4. d5 {[%emt 0:00:16]} b5 {[%emt 0:00:06]} 5. cxb5 {[%emt 0:00:06]} a6 {[%emt 0:00:04]} 6. bxa6 {[%emt 0:00:12]} Bxa6 {[%emt 0:00:06]} 7. Nc3 {[%emt 0:00:07]} d6 {[%emt 0:00:25]} 8. e4 {[%emt 0:00:11]} Bxf1 {[%emt 0:00:06]} 9. Kxf1 {[%emt 0:00:07]} Nbd7 {[%emt 0:00:07]} 10. g3 {[%emt 0:00:22]} Bg7 {[%emt 0:00:06]} 11. Kg2 {[%emt 1:34:04]} O-O {[%emt 0:00:21]} 12. Qe2 {[%emt 0:01:44]} Qa5 $1 {[%emt 0:00:11] A59: Benko/Volga Gambit: White castles by hand.} 13. Bd2 $1 {[%emt 0:07:39] 13.Bd2 is better than 13.a4.} Rfb8 {[%emt 0:00:39]} 14. Rhb1 {[%emt 0:12:48]} Qa6 {[%emt 0:01:01] Strongly threatening ...Qxe2. The position is equal.} 15. Qxa6 {[%emt 0:06:54]} (15. Qd1 {is interesting.} Nxe4 16. Nxe4 Bxb2 17. Bh6) 15... Rxa6 {[%emt 0:00:07]} 16. a4 {[%emt 0:00:15]} Ng4 {[%emt 0:03:09] [#]} (16... Rb4 $11) 17. Ne1 $146 {[%emt 0:02:58]} ({Better is} 17. a5 $14) ({Predecessor:} 17. Nb5 h6 18. b3 Bxa1 19. Rxa1 Rxb5 {0-1 (19) Pesotskiy,M (2217)-Curtis,J (2292) Chess.com INT 2022}) 17... c4 {[%emt 0:07:09]} (17... Bd4 $1 $11) 18. f3 {[%emt 0:12:32]} (18. h3 $1 $14 Nge5 19. Be3) 18... Nge5 $11 {[%emt 0:00:28]} 19. Be3 $36 {[%emt 0:01:01][%mdl 2048] Black is under pressure.} Rb3 {[%emt 0:04:21]} 20. Nc2 {[%emt 0:08:10]} Nd3 {[%emt 0:00:15][%csl LRb2,LRc3]} 21. Nd4 {[%emt 0:00:16]} Rb7 {[%emt 0:06:19]} (21... Bxd4 $5 22. Bxd4 Nxb2 $11) 22. Ra3 {[%emt 0:20:18]} N7c5 {[%emt 0:03:38]} (22... Bxd4 $5 23. Bxd4 Nb4 $11) 23. a5 {[%emt 0:04:05]} Nb3 {[%emt 0:16:15]} (23... Bxd4 $11 24. Bxd4 Rb3) 24. Nxb3 {[%emt 0:00:23]} Rxb3 {[%emt 0:57:12]} (24... cxb3 $16 25. f4 f5) 25. Rxb3 $18 {[%emt 0:02:51]} cxb3 {[%emt 0:00:05]} 26. Bb6 {[%emt 0:00:31] aiming for Nb5.} Nxb2 {[%emt 0:00:39]} 27. Nb5 {[%emt 0:04:52]} (27. Rxb2 $18 {and White stays clearly on top.} Bxc3 28. Rxb3 Bxa5 29. Bd4) 27... Nc4 $16 {[%emt 0:00:14][%csl LRa5,LRb6]} 28. Nc7 {[%emt 0:00:17]} Rxa5 {[%emt 0:00:04]} 29. Bxa5 {[%emt 0:00:29]} Nxa5 {[%emt 0:58:29][%mdl 4096] Endgame [#] KRN-KBN} 30. Nb5 $1 {[%emt 0:00:14]} b2 {[%emt 0:58:47]} 31. Kf2 {[%emt 0:01:36]} f5 {[%emt 0:03:51]} 32. exf5 {[%emt 0:01:16]} gxf5 {[%emt 0:00:05] [#]} (32... Nc4 $1 $11) 33. Ke3 {[%emt 0:00:26]} ({White should try} 33. Na3 $1 $16) 33... Kf7 {[%emt 0:00:08]} (33... Nc4+ $11 {remains equal.} 34. Kd3 Ne5+ 35. Kc2 Nxf3) 34. Kd3 {[%emt 0:00:49]} Nb3 {[%emt 0:01:46] Prevents Nd4.} 35. Nc3 {[%emt 0:03:27]} Nc5+ {[%emt 0:00:08]} 36. Kc2 {[%emt 0:01:11]} e6 {[%emt 0:03:19] A mistake that costs the game.} (36... h5 $16) 37. dxe6+ {[%emt 0:02:26]} (37. Rxb2 Bxc3 38. dxe6+ Kxe6 39. Kxc3 Na4+ 40. Kc2 Nxb2 41. Kxb2 Ke5 $11) 37... Kxe6 {[%emt 0:00:04]} 38. Re1+ {[%emt 0:01:30]} ({Stronger than} 38. Rxb2 Bxc3 39. Kxc3 Na4+ 40. Kc2 Nxb2 41. Kxb2 h5 $11) 38... Kd7 {[%emt 0:00:08]} 39. Nd1 {[%emt 0:00:47]} Bd4 {[%emt 0:07:36]} 40. Re2 {[%emt 0:06:36]} ({Weaker is} 40. Nxb2 Bxb2 41. Rb1 Be5 $17) 40... Na4 {[%emt 0:01:38]} 41. Rd2 {[%emt 0:31:18]} Bf6 {[%emt 1:14:59]} (41... Be5 $142 42. f4 Bf6) 42. Rd5 $18 {[%emt 0:02:23]} Ke6 {[%emt 0:01:13]} 43. Rb5 {[%emt 0:00:00]} h5 {[%emt 0:00:00]} 44. Rb4 {[%emt 0:00:00]} Nc5 {[%emt 0:00:00]} 45. Nxb2 {[%emt 0:00:00]} f4 {[%emt 0:00:00]} (45... Na6 $142) 46. Nd3 {[%emt 0:03:35]} fxg3 {[%emt 0:00:00]} 47. Nf4+ {[%emt 0:00:00]} Kf5 {[%emt 0:00:00]} 48. hxg3 {[%emt 0:00:00][%cal Bh2g3,Bg3g4,Bg4g5][%mdl 32]} h4 {[%emt 0:00:00]} 49. g4+ {[%emt 0:00:00] White is clearly winning.} Ke5 {[%emt 0:00:00]} 50. Nh3 {[%emt 0:00:00] Against Bg5} Ne6 {[%emt 0:47:57]} (50... Ke6 $142 51. g5 Be5 52. Rxh4 Kf5) 51. f4+ {[%emt 0:00:00]} Kd5 {[%emt 0:00:00]} 52. g5 {[%emt 0:00:00]} Bd8 {[%emt 0:00:00]} 53. Kd3 {[%emt 0:00:00] Inhibits Nd4.} Nc5+ {[%emt 0:00:00]} 54. Ke3 {[%emt 0:00:00]} Ke6 {[%emt 0:00:00]} 55. Rb8 {[%emt 0:00:00]} Be7 {[%emt 0:00:00]} 56. Kf3 {[%emt 0:00:00]} d5 {[%emt 0:00:00]} 57. Kg4 {[%emt 0:00:00] Threatens to win with f5+.} d4 {[%emt 0:00:00]} 58. f5+ {[%emt 0:09:35][%cal Bf4f5,Bf5f6][%mdl 32]} Kf7 {[%emt 0:00:00]} 59. f6 {[%emt 0:00:09]} Bd6 {[%emt 0:00:00]} 60. Rb6 {[%emt 0:01:00]} Ne4 {[%emt 0:00:00]} 61. Nf4 {[%emt 0:03:19] Weighted Error Value: White=0.13 (very precise) /Black=0.39} 1-0

[Event "FIDE WSCC 65 2022"]
[Site "Assisi"]
[Date "2022.11.20"]
[Round "6.14"]
[White "Harestad, Thor Geir"]
[Black "Cocozza, Mario"]
[Result "1/2-1/2"]
[ECO "D86"]
[WhiteElo "2115"]
[BlackElo "2298"]
[Annotator "TA"]
[PlyCount "106"]
[EventDate "2022.11.14"]
[EventType "swiss"]
[EventCountry "ITA"]
[SourceTitle "playchess.com"]
[Source "ChessBase"]
[SourceQuality "1"]
[TimeControl "40/5400+30:1800+30"]

{[%evp 22,106,10,4,7,0,15,14,16,0,8,12,32,0,0,2,13,6,9,0,5,0,9,9,12,0,0,-19,-17,-10,-8,-6,-6,-10,-9,-9,-15,-9,-7,-7,-7,-12,-12,-12,0,0,0,0,0,0,0,0,0,0,0,0,0,-107,0,0,47,33,33,90,116,21,47,56,98,0,725,0,5,0,0,0,0,0,0,0,0,0,0,0,0,0,0]} 1. d4 {[%emt 0:00:04]} Nf6 {[%emt 0:00:09]} 2. c4 {[%emt 0:00:12]} g6 {[%emt 0:00:10]} 3. Nc3 {[%emt 0:00:11]} d5 {[%emt 0:00:10]} 4. cxd5 {[%emt 0:00:09]} Nxd5 {[%emt 0:00:08]} 5. e4 {[%emt 0:00:11]} Nxc3 {[%emt 0:00:09]} 6. bxc3 {[%emt 0:00:05]} Bg7 {[%emt 0:00:12]} 7. Be3 {[%emt 0:00:08]} c5 {[%emt 0:03:15]} 8. Qd2 {[%emt 0:00:54]} Qa5 {[%emt 0:01:26]} 9. Bc4 {[%emt 0:05:04]} Nc6 {[%emt 0:03:01]} 10. Ne2 {[%emt 0:01:32]} cxd4 {[%emt 0:08:26]} 11. cxd4 {[%emt 0:00:23]} Qxd2+ {[%emt 0:00:31]} 12. Kxd2 {[%emt 0:00:07]} O-O {[%emt 0:00:20] D86: Exchange Grünfeld: Classical Line (7 Bc4).} 13. Rhd1 {[%emt 0:00:29]} Rd8 {[%emt 0:10:04]} 14. Ke1 {[%emt 0:00:47]} Na5 {[%emt 0:01:10]} 15. Rac1 {[%emt 0:03:02]} Bd7 {[%emt 0:10:38]} 16. Bd3 {[%emt 0:03:47]} Rdc8 {[%emt 0:01:08] Prevents Rc7.} (16... Ba4 $5 {[%cal Ra4d1]}) 17. Kd2 {[%emt 0:02:18][%cal Be1d2,Bd2c1,Bc1c2,Bc2c3][%mdl 32]} e6 {[%emt 0:04:04]} 18. Rxc8+ {[%emt 0:01:35]} Rxc8 {[%emt 0:02:48]} 19. Rc1 {[%emt 0:01:17] Against Nc4+} Rxc1 {[%emt 0:01:26]} 20. Kxc1 {[%emt 0:00:14] [#]} a6 $146 {[%emt 0:09:13]} ({Predecessor:} 20... Kf8 21. Bd2 Nc6 22. Bc3 Ke8 23. Kb2 Kd8 24. Kb3 Bf8 25. d5 exd5 26. exd5 Ne7 27. Bf6 Kc8 {1-0 (62) Murali Krishnan,B (2412)-Purushothaman,T (2303) Nagpur 2008}) 21. Kc2 {[%emt 0:03:21]} Kf8 {[%emt 0:04:29]} 22. Kc3 {[%emt 0:06:31]} Ke8 {[%emt 0:01:55]} 23. Bc1 {[%emt 0:05:31]} Bf8 {[%emt 0:03:09]} 24. e5 {[%emt 0:05:14]} Bc6 {[%emt 0:07:38]} 25. f3 {[%emt 0:00:26]} Bd5 {[%emt 0:00:26]} 26. a3 {[%emt 0:01:05]} b5 {[%emt 0:07:17]} 27. Nf4 {[%emt 0:01:30]} Bc4 {[%emt 0:09:03]} 28. Bxc4 {[%emt 0:01:02]} Nxc4 $11 {[%emt 0:00:12][%mdl 4096] Endgame KBN-KBN} 29. a4 {[%emt 0:00:18]} Kd7 {[%emt 0:02:21]} 30. axb5 {[%emt 0:00:14]} axb5 {[%emt 0:00:03]} 31. Nd3 {[%emt 0:00:54]} Kc6 {[%emt 0:05:43]} 32. Nf2 {[%emt 0:02:06]} Kd5 {[%emt 0:03:37]} 33. Ne4 {[%emt 0:00:28]} h6 {[%emt 0:01:20]} 34. Kd3 {[%emt 0:00:53]} g5 {[%emt 0:00:07]} 35. Nf6+ {[%emt 0:04:05]} (35. g4 $5 {[%cal Re4f6]}) 35... Kc6 {[%emt 0:00:03]} 36. f4 {[%emt 0:00:26]} gxf4 {[%emt 0:00:57]} 37. Bxf4 {[%emt 0:00:26]} Nb6 {[%emt 0:00:46]} 38. Ne4 {[%emt 0:00:59]} Nd5 {[%emt 0:00:12]} 39. Bc1 {[%emt 0:00:22]} (39. Bd2 $11) 39... Kb6 {[%emt 0:00:51]} (39... Nb4+ $17 40. Ke2 Nc2) 40. g4 {[%emt 0:00:07]} Ka5 {[%emt 0:00:30]} (40... Nb4+ $11 {is superior.} 41. Ke2 Nc2) 41. h4 {[%emt 0:30:22]} Nb4+ $1 {[%emt 0:10:51]} 42. Kd2 {[%emt 0:00:00]} Nc6 {[%emt 0:01:24]} 43. Ke3 {[%emt 0:00:00]} (43. Kc3 $1 $16) 43... Kb4 {[%emt 0:00:59]} 44. Nd6 $1 {[%emt 0:00:00]} f6 {[%emt 0:00:29] [#]} 45. Ke4 {[%emt 0:00:00]} (45. Nxb5 $1 $16 {Threatens to win with Ba3+.} Kxb5 46. exf6) 45... Nd8 $2 {[%emt 0:04:23][%mdl 8192]} (45... fxe5 $11 46. dxe5 Ka4) 46. d5 $2 {[%emt 0:00:00]} (46. exf6 $18 Nc6 {[#]} 47. g5 $1 hxg5 48. hxg5 $1) 46... fxe5 {[%emt 0:05:17] The position is equal.} 47. Kxe5 {[%emt 0:00:00]} (47. dxe6 {simplifies} Nxe6 48. Kxe5 Nc7 49. Bd2+) 47... Bg7+ {[%emt 0:00:12]} 48. Ke4 {[%emt 0:00:00]} Kc5 {[%emt 0:00:16][%csl LRd5,LRd6]} 49. Ba3+ {[%emt 0:00:00]} b4 {[%emt 0:00:12]} 50. Bxb4+ {[%emt 0:00:00]} Kxb4 {[%emt 0:00:12]} 51. dxe6 {[%emt 0:00:00]} Nxe6 {[%emt 0:00:18]} 52. Kf5 {[%emt 0:00:00]} Nf8 {[%emt 0:01:37]} 53. Ne8 {[%emt 0:00:00]} Bd4 {[%emt 0:11:43] Weighted Error Value: White=0.34/Black=0.10 (very precise)} 1/2-1/2